Cogmind - Beta 12 @@@ ROGUE MODE // 2024.02.20 @ 09:54:11 Player: ChromeKnight Result: Destroyed by as-44787 with Assembled Blade Performance ------------- Evolutions (1) 500 Regions Visited (3) 600 Robots Destroyed (58) 290 Value Destroyed (1297) 1297 Prototype IDs (0) 0 Alien Tech Used (0) 0 Bonus (19) 19 TOTAL SCORE: 2706 Bonus ------- High Alert Combat Kills 19 Cogmind --------- Core Integrity 0/400 Matter 156/300 Energy 100/100 System Corruption 0% Temperature Cool (0) Movement Walking (120) Location -9/Mines Parts ------- > --- POWER (1) -------- (None) > --- PROPULSION (2) --- Improved Aluminum Leg Improved Aluminum Leg > --- UTILITY (4) ------ Medium Storage Unit Melee Analysis Suite Light Armor Plating Hacking Suite > --- WEAPON (2) ------- Mini Grenade Launcher Maul > --- INVENTORY (10) --- Improved Aluminum Leg Weight Redist. System Light Armor Plating Light Armor Plating Light Armor Plating Light Armor Plating Medium Armor Plating Medium Armor Plating Maul Maul Peak State ------------ > --- POWER ------------ Improved Ion Engine > --- PROPULSION ------- Improved Aluminum Leg Improved Aluminum Leg > --- UTILITY ---------- Medium Storage Unit Melee Analysis Suite Light Armor Plating Hacking Suite > --- WEAPON ----------- Mini Grenade Launcher Flail > --- INVENTORY -------- Improved Ion Engine Improved Aluminum Leg Improved Aluminum Leg Improved Aluminum Leg Improved Aluminum Leg Cooling System Core Shielding [Rating: 19] Favorites ----------- Power Ion Engine Engine Ion Engine Propulsion Improved Aluminum Leg Leg Improved Aluminum Leg Hover Unit Hover Unit Utility Small Storage Unit Device Improved Heat Sink Storage Small Storage Unit Processor Melee Analysis Suite Hackware Hacking Suite Protection Light Armor Plating Weapon Small Laser Energy Gun Small Laser Ballistic Gun Light Assault Rifle Launcher Mini Grenade Launcher Impact Weapon Flail Build | -11 -10 -9 -9 ------- Run | Jun Mat Mat Min Slots Evolved 2 | . . 2 . Power . | . . . . Propulsion . | . . . . Utility 2 | . . 2 . Weapon . | . . . . Parts Attached 56 | 6 29 21 . Power 8 | 1 4 3 . Engine 8 | 1 4 3 . Core . | . . . . Reactor . | . . . . Propulsion 19 | 2 13 4 . Treads . | . . . . Leg 15 | 2 9 4 . Wheel . | . . . . Hover 4 | . 4 . . Flight . | . . . . Utility 14 | 1 4 9 . Device 3 | . 3 . . Storage 3 | 1 1 1 . Processor 1 | . . 1 . Hackware 1 | . . 1 . Protection 6 | . . 6 . Artifact . | . . . . Weapon 15 | 2 8 5 . Energy Gun 8 | 1 7 . . Energy Cannon . | . . . . Ballistic Gun 1 | 1 . . . Ballistic Cannon . | . . . . Launcher 4 | . 1 3 . Special Weapon . | . . . . Impact Weapon 2 | . . 2 . Slashing Weapon . | . . . . Piercing Weapon . | . . . . Special Melee Weapon . | . . . . Unidentified Prototypes . | . . . . Parts Lost 18 | . 10 8 . Power 3 | . 1 2 . Propulsion 7 | . 4 3 . Utility 3 | . 1 2 . Weapon 5 | . 4 1 . Highest Loss Streak 3 | . 3 3 . To Critical Strikes . | . . . . Average Slot Usage (%) 86 | . 79 93 88 Engine 9 | . 10 8 . Leg 20 | . 19 21 22 Hover 3 | . 6 . . Device 6 | . 8 4 . Storage 11 | . 11 11 11 Processor 3 | . . 6 11 Hackware 5 | . . 10 11 Protection 5 | . . 10 11 Energy Gun 13 | . 19 7 . Ballistic Gun 1 | . 2 . . Launcher 3 | . . 5 11 Impact Weapon 3 | . . 6 11 Naked Turns . | . . . . Heaviest Build 23 | 13 16 23 17 Greatest Support 26 | 20 26 26 26 Greatest Overweight (x) 7 | . 2 7 . Average Overweight (x) . | . . . . Largest Inventory Capacity 10 | 8 8 10 10 Average Capacity 8 | 6 7 9 10 Most Carried 10 | 2 8 10 10 Average Carried 6 | . 6 7 10 Final Capacity 10 | 8 8 10 10 Final Carried 10 | 1 8 10 10 Class Distribution -------------------- 52% | Mutant 47% | Scavenger-Mutant Dominant Class ---------------- Mutant | -10/Materials Mutant | -9/Materials Mutant | -9/Mines Resources | -11 -10 -9 -9 ----------- Run | Jun Mat Mat Min Matter Collected 928 | 232 447 249 . Remotely . | . . . . Salvage Created 2031 | . 1106 915 10 Parts 108 | . 68 40 . Haulers Intercepted 5 | . 1 4 . Recyclers Shooed 10 | . 9 1 . Parts Field Recycled . | . . . . Retrieved Matter . | . . . . Parts Self-Destructed . | . . . . Prevented . | . . . . Kills | -11 -10 -9 -9 ------- Run | Jun Mat Mat Min Combat Hostiles Destroyed 38 | . 15 16 7 Melee 2 | . . 2 . Guns 16 | . 13 3 . AOE 19 | . 2 10 7 Classes Destroyed 12 | . 9 2 1 Worker 2 | . 2 . . Builder 4 | . 3 1 . Tunneler 2 | . 1 1 . Hauler 5 | . 1 4 . Recycler 8 | . 5 3 . Operator 2 | . 2 . . Watcher 4 | . 2 2 . Swarmer 4 | . 3 1 . Grunt 19 | . 12 7 . Duelist 1 | . . 1 . Sentry 7 | . . 7 . Assembled 7 | . . . 7 Best Kill Streak 9 | . 6 9 7 Combat Bots Only 7 | . 3 6 7 Max Kills in Single Turn 4 | . 1 2 4 Gunslinging . | . . . . Exploded 4 | . 1 2 4 Melee 1 | . . 1 . Uniques/NPCs Destroyed . | . . . . Combat | -11 -10 -9 -9 -------- Run | Jun Mat Mat Min Damage Taken 2674 | . 912 1540 222 Core 627 | . 223 310 94 Absorbed by Shields . | . . . . Core Remaining (%) 55 | 100 10 . . Volleys Fired 163 | . 125 34 4 Largest 2 | . 2 2 1 Hottest 105 | . 105 80 30 Shots Fired 214 | . 164 46 4 Gun 190 | . 160 30 . Cannon . | . . . . Launcher 24 | . 4 16 4 Special . | . . . . Kinetic . | . . . . Thermal 184 | . 154 30 . Explosive 24 | . 4 16 4 Electromagnetic 6 | . 6 . . Robot Hit Streak 11 | . 11 7 8 Robot Miss Streak 4 | . 4 2 1 Penetration Max . | . . . . Secondary Targets . | . . . . Shots Hit Robots 151 | . 100 48 3 Core Hits 102 | . 50 38 14 Critical Kills . | . . . . Critical Parts Destroyed 3 | . . 3 . Critical Strikes 6 | . 3 3 . Burn 3 | . 3 . . Smash 3 | . . 3 . Melee Attacks 25 | . . 25 . Impact 25 | . . 25 . Slashing . | . . . . Piercing . | . . . . Sneak Attacks 5 | . . 5 . Combat Hostiles . | . . . . Follow-up Attacks . | . . . . Damage Inflicted 4138 | . 1417 2076 645 Guns 1493 | . 1287 206 . Cannons . | . . . . Explosions 1884 | . 130 1109 645 Melee 745 | . . 745 . Ramming 16 | . . 16 . Kinetic . | . . . . Thermal 1438 | . 1232 206 . Explosive 1884 | . 130 1109 645 Electromagnetic 55 | . 55 . . Impact 745 | . . 745 . Slashing . | . . . . Piercing . | . . . . Highest Corruption . | . . . . Average Corruption . | . . . . Corruption Purged . | . . . . Corruption Blocked . | . . . . Overload Shots . | . . . . Overflow Damage 315 | . . 299 16 Projectiles . | . . . . Explosions 59 | . . 43 16 Melee 256 | . . 256 . Knockbacks 3 | . . 3 . Impact 3 | . . 3 . Kinetic . | . . . . Secondary . | . . . . Self-Inflicted Damage 87 | . . 18 69 Shots 4 | . . 1 3 Rammed . | . . . . Targets Rammed 5 | . . 5 . Kicked 5 | . . 5 . Crushed . | . . . . Highest Temperature 562 | . 562 11 10 Average Temperature 150 | . 157 3 10 Received Heat Transfer 884 | . 468 396 20 Effects 9 | . 9 . . Interference 1 | . 1 . . Matter Decay 1 | . 1 . . Damage (minor) 1 | . 1 . . Damage (major) 5 | . 5 . . Damage (core) 1 | . 1 . . Siege Activations . | . . . . Robots Corrupted . | . . . . Combat Hostiles . | . . . . Parts Fried 4 | . . 4 . Impact Corruptions 7 | . . 7 . Robots Melted . | . . . . Combat Hostiles . | . . . . Parts Melted 4 | . 3 1 . Heat Transferred 3558 | . 3108 450 . Parts Sabotaged . | . . . . Parts Stolen . | . . . . Parts Stripped . | . . . . Power Chain Reactions . | . . . . Missiles Intercepted . | . . . . Alert | -11 -10 -9 -9 ------- Run | Jun Mat Mat Min Peak Influence 439 | . 204 439 204 Initial 171 | . . 53 171 Average 115 | . 86 149 186 Maximum Alert Level 2 | . 1 2 1 Low Security (%) 90 | 100 98 81 78 Level 1 5 | . 1 10 21 Level 2 4 | . . 8 . Level 3 . | . . . . Level 4 . | . . . . Level 5 . | . . . . High Security . | . . . . Max Security . | . . . . Squads Dispatched 6 | . 4 2 . Investigation 2 | . 2 . . Extermination . | . . . . Reinforcement 4 | . 2 2 . Assault . | . . . . Garrison . | . . . . Intercept . | . . . . Searches Triggered . | . . . . Construction Impeded . | . . . . Haulers Reinforced . | . . . . Active Scanning Responses . | . . . . Cargo Convoy Interrupts . | . . . . Stealth | -11 -10 -9 -9 --------- Run | Jun Mat Mat Min Distress Signals 4 | . 2 2 . Communications Jammed . | . . . . Distress Signals . | . . . . Times Spotted 74 | . 28 31 15 Peak Tracking Total 12 | . 4 6 12 Tactical Retreats 2 | . . 2 . Traps | -11 -10 -9 -9 ------- Run | Jun Mat Mat Min Traps Triggered 4 | . 4 . . Indirectly . | . . . . Trap Hack Attempts . | . . . . Triggered . | . . . . Disarmed . | . . . . Reprogrammed . | . . . . Reused . | . . . . Traps Extracted . | . . . . Installed . | . . . . Triggered . | . . . . Machines | -11 -10 -9 -9 ---------- Run | Jun Mat Mat Min Machines Disabled 2 | . 1 1 . Max in Single Turn 1 | . 1 1 . Machines Repaired . | . . . . Machines Sabotaged . | . . . . Overloaded Fab Kills . | . . . . Hacking | -11 -10 -9 -9 --------- Run | Jun Mat Mat Min Machines Accessed 8 | . 3 5 . Terminals 8 | . 3 5 . Fabricators . | . . . . Repair Stations . | . . . . Recycling Units . | . . . . Scanalyzers . | . . . . Garrison Access . | . . . . Total Hacks 19 | . 7 12 . Successful 8 | . 3 5 . Failed 11 | . 4 7 . Catastrophic 2 | . . 2 . Database Lockouts . | . . . . Manual 13 | . 6 7 . Terminals 19 | . 7 12 . Fabricators . | . . . . Repair Stations . | . . . . Recycling Units . | . . . . Scanalyzers . | . . . . Garrison Access . | . . . . Terminal Hacks 2 | . 1 1 . Robot Analysis 1 | . . 1 . Zone Layout 1 | . 1 . . Fabricator Hacks . | . . . . Repair Station Hacks . | . . . . Recycling Unit Hacks . | . . . . Scanalyzer . | . . . . Garrison Access Hacks . | . . . . Unauthorized Hacks 6 | . 2 4 . Terminals 6 | . 2 4 . Botnet 4 | . 1 3 . Operators 2 | . 1 1 . Fabricators . | . . . . Repair Stations . | . . . . Recycling Units . | . . . . Scanalyzers . | . . . . Garrison Access . | . . . . Data Cores Recovered . | . . . . Used . | . . . . Hacking Detections 6 | . 2 4 . Full Trace Events 1 | . . 1 . Feedback Events . | . . . . Feedback Blocked . | . . . . Robot Schematics Acquired . | . . . . Robots Built . | . . . . Authchips . | . . . . Time . | . . . . Total Robot Build Rating . | . . . . Part Schematics Acquired . | . . . . Parts Built . | . . . . Authchips . | . . . . Time . | . . . . Total Part Build Rating . | . . . . Parts Repaired . | . . . . Time . | . . . . Parts Recycled . | . . . . Recycled Matter . | . . . . Retrieved Matter . | . . . . Retrieved Components . | . . . . Parts Scanalyzed . | . . . . Part Schematics Acquired . | . . . . Parts Damaged . | . . . . Bothacking | -11 -10 -9 -9 ------------ Run | Jun Mat Mat Min Used RIF Installer . | . . . . Robots Hacked . | . . . . Non-combat . | . . . . Combat . | . . . . Robot Hacks Applied . | . . . . Relay Couplers Released . | . . . . Fabnet Peak Effective % . | . . . . Robots Rewired . | . . . . Allies Hacked . | . . . . Hacks Repelled . | . . . . Allies | -11 -10 -9 -9 -------- Run | Jun Mat Mat Min Total Allies . | . . . . Largest Group . | . . . . Highest-Rated Group . | . . . . Highest-Rated Ally . | . . . . Total Orders . | . . . . Ally Attacks . | . . . . Total Damage . | . . . . Kills . | . . . . Allies Corrupted . | . . . . Allies Melted . | . . . . Intel | -11 -10 -9 -9 ------- Run | Jun Mat Mat Min Robot Analysis Total 1 | . . 1 . Derelict Logs Recovered . | . . . . Drone Launches . | . . . . Drone Recoveries . | . . . . Exploration | -11 -10 -9 -9 ------------- Run | Jun Mat Mat Min Turns Passed 2110 | 55 1006 1035 14 Spaces Moved 1227 | 40 602 580 5 Core 6 | 4 1 1 . Treads . | . . . . Legs 985 | 36 365 579 5 Wheels . | . . . . Hover 236 | . 236 . . Flight . | . . . . Fastest Speed 50 | 50 56 120 120 Average Speed 111 | 113 102 120 120 Slowest Speed 400 | 120 150 400 120 Overloaded Moves . | . . . . Propulsion Burnouts . | . . . . Robots Hopped . | . . . . Cave-ins Triggered . | . . . . Exploration Rate (%) 32 | 5 64 54 5 Regions Visited 3 Branch Regions 1 Pre-discovered Areas . | . . . . Known Exits Taken . | . . . . Unknown Exits Taken 3 | 1 1 1 . Scrap Searched . | . . . . Spaces Dug 8 | . 8 . . Terrain Destroyed 173 | . 20 111 42 Melee . | . . . . Projectile . | . . . . AOE 173 | . 20 111 42 Terrain Rammed . | . . . . Walls Destroyed . | . . . . Machines Disabled . | . . . . Actions | -11 -10 -9 -9 --------- Run | Jun Mat Mat Min Total 1733 | 47 840 837 9 Wait 156 | . 21 135 . Move 1224 | 39 601 579 5 Hop . | . . . . Pick Up 55 | 2 33 20 . Fast Attach 22 | 5 13 4 . Attach 15 | 1 6 8 . Detach . | . . . . Swap 19 | . 10 9 . Drop 49 | . 31 18 . Fire 163 | . 125 34 4 Melee 25 | . . 25 . Ram . | . . . . Kick 5 | . . 5 . Crush . | . . . . Escape Stasis . | . . . . Rewire . | . . . . Trap . | . . . . Miscellaneous . | . . . . Route ------- -11/Junkyard -10/Materials (discovered 2 exits: *Mat / [*Min]) -9/Materials (discovered 2 exits: [*Mat] / [*Min]) -9/Mines History --------- Turn | Location | Event 18 | -11/Junkyard | Discovered new exit (range 16) 56 | -11/Junkyard | Entered Materials 300 | -10/Materials | Build established: Mutant 387 | -10/Materials | Lost 3 parts (1p1n1w) 439 | -10/Materials | Discovered new exit (range 12) 517 | -10/Materials | Core integrity fell below 50% 648 | -10/Materials | Core integrity fell below 20% 880 | -10/Materials | Build established: Scavenger-Mutant 1006 | -10/Materials | Discovered new exit (range 16) 1062 | -10/Materials | Entered another Materials area 1062 | -9/Materials | Evolved 2 slots: Utility x2 1686 | -9/Materials | Core integrity fell below 50% 1722 | -9/Materials | Lost 3 parts (1p2n) 1764 | -9/Materials | Discovered new exit (range 16) 1871 | -9/Materials | Build established: Mutant 2022 | -9/Materials | Discovered new exit (range 15) 2097 | -9/Materials | Entered Mines 2098 | -9/Mines | Assembled infested the area 2109 | -9/Mines | Core integrity fell below 20% 2111 | -9/Mines | Destroyed by as-44787 with Assembled Blade Last Messages --------------- 02070_ U-05 Engineer builds a Door. 02072_ K-01 Serf collects debris. 02074_ U-05 Engineer lays Concrete. 02076_ K-01 Serf collects debris. 02077_ U-05 Engineer lays Concrete. 02078_ U-05 Engineer builds a Wall. LOCATION=UNKNOWN GOAL=ESCAPE Something is scanning the area. 02098_ ALERT: Infestation in the mines, dispatching Demolisher response squad. 02104_ as-10472 destroyed. 02104_ as-01602 destroyed. 02105_ T-07 Excavator destroyed. 02106_ as-79570 destroyed. 02108_ as-18788 destroyed. 02108_ as-58750 destroyed. 02108_ Destroyed Asb. Hover Unit. 02108_ as-16364 destroyed. 02108_ as-22181 destroyed. Map ----- +----------------------------------------------------+ | ??????????????????????????????????????? | | ??????????????????????????????????????? | | ??????????????????????????????????????? | | ??????????????????????????????????????? | | ??????????????????????????????????????? | | ??????????????????????????????????????? | | ??????????????????????????????????????? | | ??????????????????????????????????????? | | ??????????????????????????????????????? | | ??????????????????????????????????????? | | ??????????????????????????????????????? | | ??????????????????????????????????????? | | ??????????????????????????????????????? | | ??????????????????????????????????????? | | ??????????????????????????????????????? | | ??????????????????????????????????????? | | ??????????##??????????????????????????? | | ?????????? ??????????????????????????? | | ??????????? ########?????????????????? | | ??????????? #?????????????????? | | ???????????? a a ######????????????? | | ???????????? # a ##???????????? | | ????????????# ####????????? | | ????????????# a * ???????? | | ????????????# aa =% ????????? | | ??????????# # @a #??????????????? | | ???????????# #??????????????? | | ??????????## ##??????????????? | | ??????????# # ####???????????????? | | ?????????# #####??????????????????? | | ?????????# ##??????????????????????? | | ?????????## ##???????????????????????? | | ??????????###?????????????????????????? | | ??????????????????????????????????????? | | | | | | | | | | | | | | | | | | | | | | | | | | | | | | | | | +----------------------------------------------------+ Best States ------------- Heat Dissipation 49 Energy Generation 12 Energy Capacity 265 Matter Stores 300 Matter Capacity 300 Sight Range 16 Terrain Scan Density 10 Armor Coverage 150 Evasion (%) 55 Melee Accuracy 5 Offensive Hacking 10 Item Schematics ----------------- None Robot Schematics ------------------ None Fabricated ------------ Nothing Alien Tech Used ----------------- None Achievements -------------- None Challenges ------------ None Game ------ Seed PhaseMasterKit Manual? 0 Play Time 00:17:27 Cumulative 423.3 hours Start 2024.02.20 @ 09:30:30 End 2024.02.20 @ 09:54:11 Sessions 3 Manual Loads 0 Difficulty Rogue Special Mode None Game No. 744 Rogue 589 Adventurer 148 Explorer 7 Win Type - Total 19 Types 16/0/2/1/0/0/0/0/0 Lore% 81 Gallery% 89 Achievement% 72 Wizard Run 0 Options --------- ASCII 0 Keyboard 0 Movement Numpad Keybinds 0 Fullscreen 2 Font 18/SmallcapsGlow Map View 76x50 Tactical HUD 1 Map Filters NONE Filters NONE Steam 1 RUN: 834a50ac-c9f3-4a62-b0c2-9ed86da0e79e